fUSD/lending_fUSD_20250123
["ID","MTS","AMOUNT","RATE_DAILY","PERIOD"]
[350055947,1737593474809,-500.0,0.00021095,14]
[350055948,1737593474819,-500.0,0.00021095,2]
[350055949,1737593474828,-500.0,0.00021095,14]
[350055950,1737593474837,-500.0,0.00021095,14]
[350055951,1737593474847,-500.0,0.00021095,14]
[350055952,1737593474857,-500.0,0.00021095,14]
[350055953,1737593474866,-500.0,0.00021095,14]
[350055954,1737593474876,-500.0,0.00021095,2]
[350055955,1737593474885,-500.0,0.00021095,2]
[350055956,1737593474894,-500.0,0.00021095,2]
[350055957,1737593474903,-500.0,0.00021095,2]
[350055958,1737593474913,-500.0,0.00021095,2]
[350055959,1737593474922,-500.0,0.00021095,2]
[350055960,1737593474931,-501.23,0.00021095,2]
[350055961,1737593474940,-500.0,0.00021095,2]
[350055962,1737593474952,-500.0,0.00021095,2]
[350055963,1737593474965,-500.0,0.00021095,2]
[350055964,1737593474979,-500.0,0.00021095,2]
[350055965,1737593474988,-728.84,0.00021095,2]
[350055966,1737593474998,-2064.71,0.00021095,2]
[350055967,1737593475008,-211.25410194,0.00021095,2]
[350055968,1737593475017,-1218.22,0.00021095,2]
[350055969,1737593475026,-598.68,0.00021095,2]
[350055970,1737593475037,-3655.05,0.00021095,2]
[350055971,1737593475048,-529.25,0.00021095,2]
[350055972,1737593475057,-645.57,0.00021095,2]
[350055973,1737593475067,-500.0,0.00021095,2]
[350055974,1737593475077,-837.72,0.00021095,2]
[350055975,1737593475086,-772.38,0.00021095,2]
[350055976,1737593475096,-519.59,0.00021095,2]
[350055977,1737593475105,-1468.95,0.00021095,2]
[350055978,1737593475115,-500.0,0.00021095,2]
[350055979,1737593475124,-652.09,0.00021095,2]
[350055980,1737593475134,-500.0,0.00021095,2]
[350055981,1737593475144,-769.88,0.00021095,2]
[350055982,1737593475154,-500.0,0.00021095,2]
[350055983,1737593475163,-500.0,0.00021095,2]
[350055984,1737593475172,-802.53,0.00021095,2]
[350055985,1737593475181,-500.0,0.00021095,2]
[350055986,1737593475191,-500.0,0.00021095,2]
[350055987,1737593475200,-997.23,0.00021095,2]
[350055988,1737593475210,-694.46,0.00021095,2]
[350055989,1737593475220,-639.2096161,0.00021095,2]
[350055990,1737593475237,-1084.29,0.00021095,2]
[350055991,1737593475247,-705.33,0.00021095,2]
[350055992,1737593475256,-500.0,0.00021095,2]
[350055993,1737593475265,-703.75,0.00021095,2]
[350055994,1737593475275,-1631.01,0.00021095,2]
[350055995,1737593475284,-1450.49,0.00021095,2]
[350055996,1737593475293,-500.0,0.00021095,2]
[350055997,1737593475303,-2342.42,0.00021095,2]
[350055998,1737593475312,-500.0,0.00021095,2]
[350055999,1737593475322,-1063.06,0.00021095,2]
[350056000,1737593475331,-638.79,0.00021095,2]
[350056001,1737593475341,-686.0,0.00021095,2]
[350056002,1737593475350,-500.0,0.00021095,2]
[350056003,1737593475359,-663.81,0.00021095,2]
[350056004,1737593475369,-1004.46,0.00021095,2]
[350056005,1737593475379,-500.0,0.00021095,2]
[350056006,1737593475388,-500.0,0.00021095,2]
[350056007,1737593475398,-679.54,0.00021095,2]
[350056008,1737593475407,-500.0,0.00021095,2]
[350056009,1737593475416,-1618.86,0.00021095,2]
[350056010,1737593475426,-1302.8,0.00021095,2]
[350056011,1737593475435,-3090.44,0.00021095,2]
[350056012,1737593475445,-2152.62,0.00021095,2]
[350056013,1737593475455,-500.0,0.00021095,2]
[350056014,1737593475464,-500.0,0.00021095,2]
[350056015,1737593475477,-500.0,0.00021095,2]
[350056016,1737593475487,-500.0,0.00021095,2]
[350056017,1737593475496,-1086.29,0.00021095,2]
[350056018,1737593475505,-500.0,0.00021095,2]
[350056019,1737593475515,-500.0,0.00021095,2]
[350056020,1737593475525,-500.0,0.00021095,2]
[350056021,1737593475534,-641.42,0.00021095,2]
[350056022,1737593475544,-1307.05,0.00021095,2]
[350056023,1737593475554,-500.0,0.00021095,2]
[350056024,1737593475563,-852.22,0.00021095,2]
[350056025,1737593475573,-1000.0,0.00021095,2]
[350056026,1737593475582,-611.75,0.00021095,2]
[350056027,1737593475592,-736.23,0.00021095,2]
[350056028,1737593475602,-1099.21,0.00021095,2]
[350056029,1737593475611,-835.35,0.00021095,2]
[350056030,1737593475621,-1296.55,0.00021095,2]
[350056031,1737593475631,-500.0,0.00021095,2]
[350056032,1737593475640,-500.0,0.00021095,2]
[350056033,1737593475650,-500.0,0.00021095,2]
[350056034,1737593475659,-500.0,0.00021095,2]
[350056035,1737593475668,-500.0,0.00021095,2]
[350056036,1737593475678,-500.0,0.00021095,2]
[350056037,1737593475687,-1532.18,0.00021095,2]
[350056038,1737593475697,-500.0,0.00021095,2]
[350056039,1737593475707,-1631.98,0.00021095,2]
[350056040,1737593475717,-500.0,0.00021095,2]
[350056041,1737593475729,-500.0,0.00021095,2]
[350056042,1737593475739,-558.89,0.00021095,2]
[350056043,1737593475748,-500.0,0.00021095,2]
[350056044,1737593475757,-1312.6,0.00021095,2]
[350056045,1737593475767,-1600.4,0.00021095,2]
[350056046,1737593475776,-500.0,0.00021095,2]
[350056047,1737593475785,-1127.63,0.00021095,2]
[350056048,1737593475794,-773.95,0.00021095,2]
[350056049,1737593475803,-1730.45,0.00021095,2]
[350056050,1737593475813,-741.16,0.00021095,2]
[350056051,1737593475822,-500.0,0.00021095,2]
[350056052,1737593475831,-500.0,0.00021095,2]
[350056053,1737593475840,-979.77,0.00021095,2]
[350056054,1737593475850,-500.0,0.00021095,2]
[350056055,1737593475859,-814.59,0.00021095,2]
[350056056,1737593475869,-500.0,0.00021095,2]
[350056057,1737593475878,-1838.81,0.00021095,2]
[350056058,1737593475887,-500.0,0.00021095,2]
[350056059,1737593475896,-738.61,0.00021095,2]
[350056060,1737593475907,-671.34,0.00021095,2]
[350056061,1737593475916,-501.42,0.00021095,2]
[350056062,1737593475926,-386.11,0.00021095,2]
[350056063,1737593475935,-1024.69,0.00021095,2]
[350056064,1737593475945,-500.0,0.00021095,2]
[350056065,1737593475960,-500.0,0.00021095,2]
[350056066,1737593475980,-500.0,0.00021095,2]
[350056067,1737593475991,-1399.46,0.00021095,2]
[350056068,1737593476001,-1637.52,0.00021095,2]
[350056069,1737593476011,-500.0,0.00021095,2]
[350056070,1737593476021,-500.0,0.00021095,2]
[350056071,1737593476031,-500.0,0.00021095,2]
[350056072,1737593476040,-1389.96,0.00021095,2]
[350056073,1737593476050,-551.34,0.00021095,2]
[350056074,1737593476058,-447.01138585,0.00021095,2]
[350056075,1737593476068,-1216.14,0.00021095,2]
[350056076,1737593476077,-553.25,0.00021095,2]
[350056077,1737593476087,-500.0,0.00021095,2]
[350056078,1737593476096,-541.01,0.00021095,2]
[350056079,1737593476105,-505.89,0.00021095,2]
[350056080,1737593476115,-500.0,0.00021095,2]
[350056081,1737593476124,-383.22053579,0.00021095,2]
[350056082,1737593476134,-553.45,0.00021095,2]
[350056083,1737593476144,-500.0,0.00021095,2]
[350056084,1737593476154,-500.0,0.00021095,2]
[350056085,1737593476164,-500.0,0.00021095,2]
[350056086,1737593476173,-676.9,0.00021095,2]
[350056087,1737593476183,-500.0,0.00021095,2]
[350056088,1737593476192,-500.0,0.00021095,2]
[350056089,1737593476202,-1780.08,0.00021095,2]
[350056090,1737593476211,-859.24,0.00021095,2]
[350056091,1737593476220,-500.0,0.00021095,2]
[350056092,1737593476235,-500.0,0.00021095,2]
[350056093,1737593476247,-559.06,0.00021095,2]
[350056094,1737593476256,-500.0,0.00021095,2]
[350056095,1737593476265,-500.0,0.00021095,2]
[350056096,1737593476275,-705.9,0.00021095,2]
[350056097,1737593476284,-580.02,0.00021095,2]
[350056098,1737593476293,-715.2,0.00021095,2]
[350056099,1737593476302,-677.01,0.00021095,2]
[350056100,1737593476312,-500.0,0.00021095,2]
[350056101,1737593476321,-990.45,0.00021095,2]
[350056102,1737593476331,-500.0,0.00021095,2]
[350056103,1737593476340,-972.02,0.00021095,2]
[350056104,1737593476350,-500.0,0.00021095,2]
[350056105,1737593476359,-500.0,0.00021095,2]
[350056106,1737593476369,-500.0,0.00021095,2]
[350056107,1737593476378,-915.61,0.00021095,2]
[350056108,1737593476388,-927.47,0.00021095,2]
[350056109,1737593476397,-500.0,0.00021095,2]
[350056110,1737593476507,-1648.34,0.00021095,2]
[350056111,1737593476516,-561.76,0.00021095,2]
[350056112,1737593476526,-150.0,0.00021142,2]
[350056113,1737593476535,-150.0,0.00021145,2]
[350056114,1737593476544,-503.46261044,0.00021166,2]
[350056115,1737593476554,-150.0,0.00021176,2]
[350056116,1737593476564,-150.0,0.00021196,2]
[350056117,1737593476573,-150.0,0.00021217,2]
[350056118,1737593476583,-253.3,0.00021272,2]
[350056119,1737593476593,-25699.98508121,0.00021273,2]
[350056120,1737593476604,-150.0,0.00021279,2]
[350056121,1737593476614,-944.70963571,0.00021279,2]
[350056122,1737593476624,-151.90782398,0.0002132,2]
[350056123,1737593476634,-150.0,0.00021322,2]
[350056124,1737593476644,-841.0,0.0002134,2]
[350056125,1737593476653,-150.0,0.00021356,2]
[350056126,1737593476662,-150.0,0.0002136,2]
[350056127,1737593476672,-500.0,0.00021368,2]
[350056128,1737593476681,-164.13550762,0.00021368,2]
[350056129,1737593476690,-500.0,0.00021369,2]
[350056130,1737593476699,-552.18674941,0.00021369,2]
[350056131,1737593476708,-479.81998464,0.00021369,2]
[350056132,1737593476717,-500.0,0.00021369,2]
[350056133,1737593476729,-631.89,0.00021369,2]
[350056134,1737593476739,-344.56445506,0.00021369,2]
[350056135,1737593476748,-500.0,0.00021369,2]
[350056136,1737593476757,-500.0,0.00021369,2]
[350056137,1737593476766,-500.0,0.00021369,2]
[350056138,1737593476775,-500.0,0.00021369,2]
[350056139,1737593476786,-319.71681804,0.00021369,2]
[350056140,1737593476807,-500.0,0.00021369,2]
[350056141,1737593476816,-500.0,0.00021369,2]
[350056142,1737593476825,-500.0,0.00021369,2]
[350056143,1737593476834,-500.0,0.00021369,2]
[350056144,1737593476843,-500.0,0.00021369,2]
[350056145,1737593476852,-500.0,0.00021369,2]
[350056146,1737593476861,-500.0,0.00021369,2]
[350056147,1737593476871,-500.0,0.00021369,2]
[350056148,1737593476881,-916.39,0.00021369,2]
[350056149,1737593476890,-500.0,0.00021369,2]
[350056150,1737593476899,-631.07028792,0.00021369,2]
[350056151,1737593476909,-500.0,0.00021369,2]
[350056152,1737593476918,-500.0,0.00021369,2]
[350056153,1737593476928,-500.0,0.00021369,2]
[350056154,1737593476937,-500.0,0.00021369,2]
[350056155,1737593476948,-500.0,0.00021369,2]
[350056156,1737593476959,-500.0,0.00021369,2]
[350056157,1737593476969,-500.0,0.00021369,2]
[350056158,1737593476981,-500.0,0.00021369,2]
[350056159,1737593476991,-557.69,0.00021369,2]
[350056160,1737593477000,-500.0,0.00021369,2]
[350056161,1737593477010,-500.0,0.00021369,2]
[350056162,1737593477019,-500.0,0.00021369,2]
[350056163,1737593477030,-335.59584646,0.00021369,2]
[350056164,1737593477040,-500.0,0.00021369,2]
[350056165,1737593477049,-500.0,0.00021369,2]
[350056166,1737593477059,-500.0,0.00021369,2]
[350056167,1737593477068,-549.32,0.00021369,2]
[350056168,1737593477077,-500.0,0.00021369,2]
[350056169,1737593477087,-500.0,0.00021369,2]
[350056170,1737593477096,-500.0,0.00021369,2]
[350056171,1737593477106,-500.0,0.00021369,2]
[350056172,1737593477115,-370.92449319,0.00021369,2]
[350056173,1737593477124,-537.45,0.00021369,2]
[350056174,1737593477134,-500.0,0.00021369,2]
[350056175,1737593477143,-500.0,0.00021369,2]
[350056176,1737593477152,-500.0,0.00021369,2]
[350056177,1737593477161,-500.0,0.00021369,2]
[350056178,1737593477171,-500.0,0.00021369,2]
[350056179,1737593477180,-500.0,0.00021369,2]
[350056180,1737593477189,-500.0,0.00021369,2]
[350056181,1737593477198,-500.0,0.00021369,2]
[350056182,1737593477207,-500.0,0.00021369,2]
[350056183,1737593477216,-500.0,0.00021369,2]
[350056184,1737593477227,-563.58,0.00021369,2]
[350056185,1737593477237,-598.32281621,0.00021369,2]
[350056186,1737593477246,-363.5769085,0.00021369,2]
[350056187,1737593477256,-500.0,0.00021369,2]
[350056188,1737593477266,-500.0,0.00021369,2]
[350056189,1737593477275,-579.5,0.00021369,2]
[350056190,1737593477286,-656.16,0.00021369,2]
[350056191,1737593477295,-500.0,0.00021369,2]
[350056192,1737593477304,-500.0,0.00021369,2]
[350056193,1737593477313,-500.0,0.00021369,2]
[350056194,1737593477323,-525.64,0.00021369,2]
[350056195,1737593477333,-500.0,0.00021369,2]
[350056196,1737593477343,-569.12,0.00021369,2]
[350056197,1737593477352,-500.0,0.00021369,2]
[350056198,1737593477361,-500.0,0.00021369,2]
[350056199,1737593477370,-500.0,0.00021369,2]
[350056200,1737593477380,-500.0,0.00021369,2]
[350056201,1737593477390,-500.0,0.00021369,14]
[350056202,1737593477400,-500.0,0.00021369,2]
[350056203,1737593477409,-159.04718731,0.00021369,2]
[350056204,1737593477418,-500.0,0.00021369,2]
[350056205,1737593477428,-500.0,0.00021369,2]
[350056206,1737593477438,-500.0,0.00021369,2]
[350056207,1737593477447,-500.0,0.00021369,2]
[350056208,1737593477456,-501.23,0.00021369,2]
[350056209,1737593477465,-500.0,0.00021369,2]
[350056210,1737593477476,-500.0,0.00021369,2]
[350056211,1737593477485,-500.0,0.00021369,2]
[350056212,1737593477495,-500.0,0.00021369,2]
[350056213,1737593477504,-728.84,0.00021369,2]
[350056214,1737593477513,-2064.71,0.00021369,2]
[350056215,1737593477523,-1218.22,0.00021369,2]
[350056216,1737593477533,-3655.05,0.00021369,2]
[350056217,1737593477542,-529.25,0.00021369,2]
[350056218,1737593477552,-645.57,0.00021369,2]
[350056219,1737593477561,-500.0,0.00021369,2]
[350056220,1737593477571,-837.72,0.00021369,2]
[350056221,1737593477580,-772.38,0.00021369,2]
[350056222,1737593477589,-519.59,0.00021369,2]
[350056223,1737593477598,-1468.95,0.00021369,2]
[350056224,1737593477608,-652.09,0.00021369,2]
[350056225,1737593477617,-500.0,0.00021369,2]
[350056226,1737593477626,-769.88,0.00021369,2]
[350056227,1737593477635,-500.0,0.00021369,2]
[350056228,1737593477644,-500.0,0.00021369,2]
[350056229,1737593477653,-802.53,0.00021369,2]
[350056230,1737593477663,-500.0,0.00021369,2]
[350056231,1737593477672,-500.0,0.00021369,2]
[350056232,1737593477681,-997.23,0.00021369,2]
[350056233,1737593477691,-694.46,0.00021369,2]
[350056234,1737593477700,-1084.29,0.00021369,2]
[350056235,1737593477709,-705.33,0.00021369,2]
[350056236,1737593477718,-500.0,0.00021369,2]
[350056237,1737593477732,-703.75,0.00021369,2]
[350056238,1737593477741,-1631.01,0.00021369,2]
[350056239,1737593477751,-1450.49,0.00021369,2]
[350056240,1737593477761,-500.0,0.00021369,2]
[350056241,1737593477770,-2342.42,0.00021369,2]
[350056242,1737593477779,-500.0,0.00021369,2]
[350056243,1737593477789,-1063.06,0.00021369,2]
[350056244,1737593477798,-638.79,0.00021369,2]
[350056245,1737593477807,-686.0,0.00021369,2]
[350056246,1737593477816,-500.0,0.00021369,2]
[350056247,1737593477826,-663.81,0.00021369,2]
[350056248,1737593477835,-1004.46,0.00021369,2]
[350056249,1737593477845,-500.0,0.00021369,2]
[350056250,1737593477854,-500.0,0.00021369,2]
[350056251,1737593477863,-679.54,0.00021369,2]
[350056252,1737593477872,-500.0,0.00021369,2]
[350056253,1737593477882,-1618.86,0.00021369,2]
[350056254,1737593477891,-1302.8,0.00021369,2]
[350056255,1737593477900,-3090.44,0.00021369,2]
[350056256,1737593477910,-2152.62,0.00021369,2]
[350056257,1737593477919,-500.0,0.00021369,2]
[350056258,1737593477929,-500.0,0.00021369,2]
[350056259,1737593477939,-538.20591238,0.00021369,2]
[350056260,1737593477948,-500.0,0.00021369,2]
[350056261,1737593477960,-1086.29,0.00021369,2]
[350056262,1737593477970,-500.0,0.00021369,2]
[350056263,1737593477982,-500.0,0.00021369,2]
[350056264,1737593477992,-500.0,0.00021369,2]
[350056265,1737593478002,-641.42,0.00021369,2]
[350056266,1737593478011,-1307.05,0.00021369,2]
[350056267,1737593478020,-500.0,0.00021369,2]
[350056268,1737593478029,-852.22,0.00021369,2]
[350056269,1737593478043,-1000.0,0.00021369,2]
[350056270,1737593478053,-611.75,0.00021369,2]
[350056271,1737593478062,-736.23,0.00021369,2]
[350056272,1737593478071,-1099.21,0.00021369,2]
[350056273,1737593478079,-835.35,0.00021369,2]
[350056274,1737593478089,-1296.55,0.00021369,2]
[350056275,1737593478098,-500.0,0.00021369,2]
[350056276,1737593478107,-500.0,0.00021369,2]
[350056277,1737593478116,-500.0,0.00021369,2]
[350056278,1737593478126,-500.0,0.00021369,2]
[350056279,1737593478235,-500.0,0.00021369,2]
[350056280,1737593478246,-500.0,0.00021369,2]
[350056281,1737593478256,-1532.18,0.00021369,2]
[350056282,1737593478266,-500.0,0.00021369,2]
[350056283,1737593478275,-1631.98,0.00021369,2]
[350056284,1737593478284,-500.0,0.00021369,2]
[350056285,1737593478294,-500.0,0.00021369,2]
[350056286,1737593478303,-558.89,0.00021369,2]
[350056287,1737593478313,-500.0,0.00021369,2]
[350056288,1737593478323,-1312.6,0.00021369,2]
[350056289,1737593478332,-1600.4,0.00021369,2]
[350056290,1737593478342,-301.24,0.00021369,2]
[350056291,1737593478351,-1127.63,0.00021369,2]
[350056292,1737593478361,-773.95,0.00021369,2]
[350056293,1737593478371,-1730.45,0.00021369,2]
[350056294,1737593478381,-741.16,0.00021369,2]
[350056295,1737593478390,-500.0,0.00021369,2]
[350056296,1737593478400,-500.0,0.00021369,2]
[350056297,1737593478410,-979.77,0.00021369,2]
[350056298,1737593478419,-500.0,0.00021369,2]
[350056299,1737593478429,-500.0,0.00021369,2]
[350056300,1737593478438,-814.59,0.00021369,2]
[350056301,1737593478447,-1838.81,0.00021369,2]
[350056302,1737593478456,-500.0,0.00021369,2]
[350056303,1737593478466,-738.61,0.00021369,2]
[350056304,1737593478479,-671.34,0.00021369,2]
[350056305,1737593478489,-501.42,0.00021369,2]
[350056306,1737593478499,-1024.69,0.00021369,2]
[350056307,1737593478508,-500.0,0.00021369,2]
[350056308,1737593478518,-500.0,0.00021369,2]
[350056309,1737593478527,-1399.46,0.00021369,2]
[350056310,1737593478538,-1637.52,0.00021369,2]
[350056311,1737593478547,-500.0,0.00021369,2]
[350056312,1737593478556,-500.0,0.00021369,2]
[350056313,1737593478566,-500.0,0.00021369,2]
[350056314,1737593478575,-1389.96,0.00021369,2]
[350056315,1737593478585,-551.34,0.00021369,2]
[350056316,1737593478594,-1216.14,0.00021369,2]
[350056317,1737593478605,-500.0,0.00021369,2]
[350056318,1737593478614,-541.01,0.00021369,2]
[350056319,1737593478624,-505.89,0.00021369,2]
[350056320,1737593478633,-160.38,0.00021369,2]
[350056321,1737593478643,-553.45,0.00021369,2]
[350056322,1737593478652,-500.0,0.00021369,2]
[350056323,1737593478662,-500.0,0.00021369,2]
[350056324,1737593478672,-433.64482891,0.00021369,2]
[350056325,1737593478681,-676.9,0.00021369,2]
[350056326,1737593478691,-500.0,0.00021369,2]
[350056327,1737593478700,-500.0,0.00021369,2]
[350056328,1737593478710,-1780.08,0.00021369,2]
[350056329,1737593478720,-859.24,0.00021369,2]
[350056330,1737593478733,-500.0,0.00021369,2]
[350056331,1737593478742,-500.0,0.00021369,2]
[350056332,1737593478752,-559.06,0.00021369,2]
[350056333,1737593478761,-553.65,0.00021369,2]
[350056334,1737593478771,-500.0,0.00021369,2]
[350056335,1737593478786,-705.9,0.00021369,2]
[350056336,1737593478795,-580.02,0.00021369,2]
[350056337,1737593478804,-715.2,0.00021369,2]
[350056338,1737593478814,-677.01,0.00021369,2]
[350056339,1737593478823,-500.0,0.00021369,2]
[350056340,1737593478833,-990.45,0.00021369,2]
[350056341,1737593478842,-500.0,0.00021369,2]
[350056342,1737593478852,-972.02,0.00021369,2]
[350056343,1737593478861,-264.4524923,0.00021369,2]
[350056344,1737593478871,-500.0,0.00021369,2]
[350056345,1737593478880,-500.0,0.00021369,2]
[350056346,1737593478889,-915.61,0.00021369,2]
[350056347,1737593478900,-927.47,0.00021369,2]
[350056348,1737593478909,-500.0,0.00021369,2]
[350056349,1737593478918,-1648.34,0.00021369,2]
[350056350,1737593478928,-561.76,0.00021369,2]
[350056351,1737593478937,-152.0,0.00021407,4]
[350056352,1737593478947,-150.0,0.00021411,2]
[350056353,1737593478957,-1249.57842436,0.00021444,2]
[350056354,1737593478967,-1613.0,0.00021455,2]
[350056355,1737593478979,-243.51446351,0.00021475,2]
[350056356,1737593478988,-150.0,0.00021484,2]
[350056357,1737593479002,-150.0,0.00021486,2]
[350056358,1737593479012,-944.70963571,0.00021486,2]
[350056359,1737593479021,-190.05417038,0.00021497,2]
[350056360,1737593479031,-150.0,0.00021502,2]
[350056361,1737593479043,-2110.0,0.00021505,2]
[350056362,1737593479052,-150.0,0.00021506,2]
[350056363,1737593479061,-150.0,0.00021512,2]
[350056364,1737593479071,-150.0,0.00021516,2]
[350056365,1737593479081,-150.0,0.00021522,2]
[350056366,1737593479091,-150.0,0.00021523,2]
[350056367,1737593479100,-503.46261044,0.00021533,2]
[350056368,1737593479109,-150.0,0.00021546,2]
[350056369,1737593479119,-150.0,0.00021557,2]
[350056370,1737593479128,-1000.0,0.00021557,2]
[350056371,1737593479138,-841.0,0.0002156,2]
[350056372,1737593479147,-25699.98508121,0.00021586,2]
[350056373,1737593479157,-1000.0,0.000216,2]
[350056374,1737593479166,-150.0,0.00021616,2]
[350056375,1737593479176,-150.0,0.00021619,2]
[350056376,1737593479185,-748.14,0.00021633,2]
[350056377,1737593479194,-500.0,0.00021633,2]
[350056378,1737593479204,-500.0,0.00021642,2]
[350056379,1737593479213,-260.41033135,0.00021643,2]
[350056380,1737593479221,-500.0,0.00021643,2]
[350056381,1737593479234,-631.89,0.00021643,2]
[350056382,1737593479243,-500.0,0.00021643,2]
[350056383,1737593479252,-620.30801035,0.00021643,2]
[350056384,1737593479262,-547.96539019,0.00021643,2]
[350056385,1737593479271,-337.94180138,0.00021643,2]
[350056386,1737593479280,-500.0,0.00021643,2]
[350056387,1737593479289,-500.0,0.00021643,2]
[350056388,1737593479298,-410.53218648,0.00021643,2]
[350056389,1737593479307,-500.0,0.00021643,2]
[350056390,1737593479316,-500.0,0.00021643,2]
[350056391,1737593479327,-500.0,0.00021643,2]
[350056392,1737593479336,-500.0,0.00021643,2]
[350056393,1737593479345,-916.39,0.00021643,2]
[350056394,1737593479354,-500.0,0.00021643,2]
[350056395,1737593479364,-500.0,0.00021643,2]
[350056396,1737593479373,-500.0,0.00021643,2]
[350056397,1737593479382,-500.0,0.00021643,2]
[350056398,1737593479392,-500.0,0.00021643,2]
[350056399,1737593479401,-500.0,0.00021643,2]
[350056400,1737593479410,-500.0,0.00021643,2]
[350056401,1737593479419,-500.0,0.00021643,2]
[350056402,1737593479428,-500.0,0.00021643,2]
[350056403,1737593479438,-557.69,0.00021643,2]
[350056404,1737593479447,-637.77,0.00021643,2]
[350056405,1737593479456,-402.4657076,0.00021643,2]
[350056406,1737593479465,-616.25596824,0.00021643,2]
[350056407,1737593479478,-500.0,0.00021643,2]
[350056408,1737593479488,-500.0,0.00021643,2]
[350056409,1737593479497,-500.0,0.00021643,2]
[350056410,1737593479507,-549.32,0.00021643,2]
[350056411,1737593479516,-500.0,0.00021643,2]
[350056412,1737593479526,-504.2,0.00021643,2]
[350056413,1737593479535,-440.27294947,0.00021643,2]
[350056414,1737593479544,-500.0,0.00021643,2]
[350056415,1737593479554,-537.45,0.00021643,2]
[350056416,1737593479563,-500.0,0.00021643,2]
[350056417,1737593479572,-500.0,0.00021643,2]
[350056418,1737593479581,-500.0,0.00021643,2]
[350056419,1737593479591,-500.0,0.00021643,2]
[350056420,1737593479600,-500.0,0.00021643,2]
[350056421,1737593479609,-500.0,0.00021643,2]
[350056422,1737593479619,-500.0,0.00021643,2]
[350056423,1737593479628,-500.0,0.00021643,2]
[350056424,1737593479638,-500.0,0.00021643,2]
[350056425,1737593479648,-563.58,0.00021643,2]
[350056426,1737593479659,-500.0,0.00021643,2]
[350056427,1737593479668,-500.0,0.00021643,2]
[350056428,1737593479678,-579.5,0.00021643,2]
[350056429,1737593479689,-656.16,0.00021643,2]
[350056430,1737593479700,-500.0,0.00021643,2]
[350056431,1737593479710,-500.0,0.00021643,2]
[350056432,1737593479720,-500.0,0.00021643,2]
[350056433,1737593479740,-525.64,0.00021643,2]
[350056434,1737593479751,-500.0,0.00021643,2]
[350056435,1737593479857,-569.12,0.00021643,2]
[350056436,1737593479866,-500.0,0.00021643,2]
[350056437,1737593479875,-500.0,0.00021643,2]
[350056438,1737593479884,-500.0,0.00021643,2]
[350056439,1737593479894,-355.6362542,0.00021643,2]
[350056440,1737593479904,-500.0,0.00021643,14]
[350056441,1737593479913,-500.0,0.00021643,2]
[350056442,1737593479923,-500.0,0.00021643,2]
[350056443,1737593479934,-500.0,0.00021643,2]
[350056444,1737593479963,-500.0,0.00021643,2]
[350056445,1737593479973,-501.23,0.00021643,2]
[350056446,1737593479988,-500.0,0.00021643,2]